fUST/lending_fUST_20260118
["ID","MTS","AMOUNT","RATE_DAILY","PERIOD"]
[402430525,1768675861091,-1569.6,0.00016986,3]
[402430528,1768675861107,-500.0,0.00016986,3]
[402430530,1768675861121,-1045.69,0.00016986,3]
[402430532,1768675861132,-500.0,0.00016986,3]
[402430535,1768675861144,-2897.63,0.00016986,3]
[402430538,1768675861162,-1000.0,0.00016986,2]
[402430540,1768675861174,-500.0,0.00016986,3]
[402430542,1768675861185,-500.0,0.00016986,3]
[402430544,1768675861207,-2015.39,0.00016986,3]
[402430547,1768675861219,-500.0,0.00016986,2]
[402430549,1768675861232,-500.0,0.00016986,3]
[402430552,1768675861248,-500.0,0.00016986,3]
[402430554,1768675861263,-1285.11,0.00016986,3]
[402430557,1768675861279,-585.26,0.00016986,3]
[402430560,1768675861295,-500.0,0.00016986,3]
[402430562,1768675861309,-1023.93,0.00016986,3]
[402430565,1768675861324,-14376.21,0.00016986,3]
[402430567,1768675861339,-500.0,0.00016986,3]
[402430570,1768675861353,-1321.15,0.00016986,3]
[402430572,1768675861367,-500.0,0.00016986,3]
[402430575,1768675861380,-500.0,0.00016986,3]
[402430577,1768675861393,-1071.96,0.00016986,3]
[402430579,1768675861406,-785.27,0.00016986,3]
[402430582,1768675861419,-500.0,0.00016986,2]
[402430585,1768675861433,-150.12056451,0.00016986,2]
[402430587,1768675861449,-184.9581126,0.00016986,2]
[402430589,1768675861462,-200.0,0.00017,2]
[402430592,1768675861477,-200.0,0.00017,2]
[402430594,1768675861490,-200.0,0.00017,2]
[402430597,1768675861502,-200.0,0.00017,2]
[402430599,1768675861515,-200.0,0.00017,2]
[402430601,1768675861527,-200.0,0.00017,2]
[402430604,1768675861539,-200.0,0.00017,2]
[402430606,1768675861551,-200.0,0.00017,2]
[402430608,1768675861564,-209.50263211,0.00017,2]
[402430611,1768675861576,-274.90835023,0.00017,2]
[402430613,1768675861588,-81764.19339649,0.0001701,3]
[402430616,1768675861601,-168.0,0.00017146,2]
[402430618,1768675861613,-347.0,0.00017181,2]
[402430620,1768675861630,-168.0,0.00017184,2]
[402430623,1768675861642,-514.84070869,0.00017184,2]
[402430625,1768675861655,-2487.15318209,0.00017184,2]
[402430628,1768675861669,-281.0,0.000172,2]
[402430630,1768675861681,-168.0,0.00017207,2]
[402430632,1768675861694,-168.0,0.00017235,2]
[402430635,1768675861708,-168.0,0.0001724,2]
[402430637,1768675861721,-606.47,0.0001726,3]
[402430639,1768675861733,-500.0,0.0001726,3]
[402430641,1768675861745,-500.0,0.0001726,3]
[402430644,1768675861758,-500.0,0.0001726,3]
[402430646,1768675861770,-500.0,0.0001726,3]
[402430648,1768675861783,-500.0,0.0001726,3]
[402430651,1768675861795,-500.0,0.0001726,3]
[402430653,1768675861808,-500.0,0.0001726,3]
[402430655,1768675861820,-500.0,0.0001726,3]
[402430658,1768675861832,-500.0,0.0001726,3]
[402430660,1768675861843,-785.35,0.0001726,3]
[402430662,1768675861855,-500.0,0.0001726,3]
[402430664,1768675861866,-500.0,0.0001726,3]
[402430667,1768675861878,-958.0,0.0001726,3]
[402430669,1768675861890,-945.0,0.0001726,3]
[402430671,1768675861902,-500.0,0.0001726,3]
[402430673,1768675861914,-500.0,0.0001726,3]
[402430676,1768675861926,-500.0,0.0001726,3]
[402430678,1768675861938,-500.0,0.0001726,3]
[402430680,1768675861953,-500.0,0.0001726,3]
[402430683,1768675861970,-500.0,0.0001726,3]
[402430685,1768675861982,-500.0,0.0001726,3]
[402430687,1768675861994,-500.0,0.0001726,3]
[402430689,1768675862006,-500.0,0.0001726,3]
[402430692,1768675862017,-500.0,0.0001726,3]
[402430694,1768675862028,-500.0,0.0001726,3]
[402430696,1768675862040,-660.71,0.0001726,3]
[402430699,1768675862053,-500.0,0.0001726,3]
[402430701,1768675862065,-717.86,0.0001726,3]
[402430703,1768675862077,-500.0,0.0001726,3]
[402430705,1768675862089,-586.64,0.0001726,3]
[402430707,1768675862101,-1050.44,0.0001726,3]
[402430709,1768675862116,-500.0,0.0001726,3]
[402430710,1768675862129,-500.0,0.0001726,3]
[402430711,1768675862140,-748.64,0.0001726,3]
[402430712,1768675862152,-500.0,0.0001726,3]
[402430713,1768675862164,-500.0,0.0001726,3]
[402430714,1768675862175,-500.0,0.0001726,3]
[402430715,1768675862186,-500.0,0.0001726,3]
[402430716,1768675862197,-824.78,0.0001726,3]
[402430717,1768675862208,-500.0,0.0001726,3]
[402430718,1768675862220,-500.0,0.0001726,3]
[402430719,1768675862232,-500.0,0.0001726,3]
[402430720,1768675862244,-500.0,0.0001726,3]
[402430723,1768675862256,-629.37,0.0001726,3]
[402430725,1768675862267,-618.03,0.0001726,3]
[402430727,1768675862280,-500.0,0.0001726,3]
[402430729,1768675862292,-500.0,0.0001726,3]
[402430731,1768675862304,-785.43,0.0001726,3]
[402430734,1768675862315,-1229.27,0.0001726,3]
[402430736,1768675862328,-500.0,0.0001726,3]
[402430738,1768675862340,-503.99,0.0001726,3]
[402430740,1768675862351,-500.0,0.0001726,3]
[402430743,1768675862363,-1332.53,0.0001726,3]
[402430745,1768675862375,-547.09236024,0.0001726,3]
[402430747,1768675862386,-500.0,0.0001726,3]
[402430749,1768675862398,-500.0,0.0001726,3]
[402430752,1768675862410,-1544.82,0.0001726,3]
[402430754,1768675862421,-500.0,0.0001726,3]
[402430756,1768675862433,-500.0,0.0001726,3]
[402430758,1768675862445,-500.0,0.0001726,3]
[402430761,1768675862456,-500.0,0.0001726,3]
[402430763,1768675862468,-500.0,0.0001726,3]
[402430765,1768675862480,-500.0,0.0001726,3]
[402430767,1768675862491,-500.0,0.0001726,3]
[402430770,1768675862503,-724.87,0.0001726,3]
[402430772,1768675862514,-500.0,0.0001726,3]
[402430774,1768675862526,-674.95746037,0.0001726,3]
[402430777,1768675862539,-500.0,0.0001726,3]
[402430779,1768675862551,-686.6,0.0001726,3]
[402430781,1768675862561,-500.0,0.0001726,3]
[402430783,1768675862574,-1363.3,0.0001726,3]
[402430786,1768675862586,-500.0,0.0001726,3]
[402430788,1768675862597,-500.0,0.0001726,3]
[402430790,1768675862609,-500.0,0.0001726,3]
[402430792,1768675862621,-500.0,0.0001726,3]
[402430795,1768675862633,-500.0,0.0001726,3]
[402430797,1768675862644,-364.90375644,0.0001726,3]
[402430799,1768675862655,-500.0,0.0001726,3]
[402430801,1768675862668,-500.0,0.0001726,3]
[402430803,1768675862680,-500.0,0.0001726,3]
[402430806,1768675862692,-1486.35,0.0001726,3]
[402430809,1768675862712,-500.0,0.0001726,3]
[402430812,1768675862732,-565.26,0.0001726,3]
[402430815,1768675862747,-500.0,0.0001726,3]
[402430817,1768675862762,-1421.58,0.0001726,3]
[402430820,1768675862778,-500.0,0.0001726,3]
[402430822,1768675862793,-500.0,0.0001726,3]
[402430825,1768675862808,-895.06,0.0001726,3]
[402430827,1768675862822,-646.41,0.0001726,3]
[402430830,1768675862836,-500.0,0.0001726,3]
[402430832,1768675862849,-500.0,0.0001726,3]
[402430835,1768675862864,-996.79,0.0001726,3]
[402430837,1768675862876,-764.09,0.0001726,3]
[402430840,1768675862890,-525.18,0.0001726,3]
[402430842,1768675862902,-716.74,0.0001726,3]
[402430844,1768675862915,-1323.24,0.0001726,3]
[402430847,1768675862929,-271.88452189,0.0001726,3]
[402430849,1768675862941,-500.0,0.0001726,3]
[402430851,1768675862955,-770.45,0.0001726,3]
[402430854,1768675862968,-500.0,0.0001726,3]
[402430856,1768675862981,-500.0,0.0001726,3]
[402430858,1768675862994,-500.0,0.0001726,3]
[402430861,1768675863007,-500.0,0.0001726,3]
[402430863,1768675863019,-500.0,0.0001726,3]
[402430865,1768675863032,-1407.33,0.0001726,3]
[402430868,1768675863046,-632.04,0.0001726,3]
[402430870,1768675863057,-931.88,0.0001726,3]
[402430872,1768675863070,-500.0,0.0001726,3]
[402430874,1768675863082,-1247.83,0.0001726,3]
[402430877,1768675863094,-500.0,0.0001726,3]
[402430879,1768675863106,-1206.36,0.0001726,3]
[402430881,1768675863118,-505.92,0.0001726,3]
[402430884,1768675863130,-500.0,0.0001726,3]
[402430886,1768675863143,-500.0,0.0001726,3]
[402430888,1768675863155,-538.41,0.0001726,3]
[402430890,1768675863167,-500.0,0.0001726,3]
[402430893,1768675863182,-500.0,0.0001726,3]
[402430895,1768675863194,-1150.55,0.0001726,3]
[402430897,1768675863206,-500.0,0.0001726,3]
[402430899,1768675863218,-500.0,0.0001726,3]
[402430902,1768675863231,-989.09,0.0001726,3]
[402430904,1768675863243,-500.0,0.0001726,3]
[402430906,1768675863255,-975.59,0.0001726,3]
[402430908,1768675863268,-1116.5,0.0001726,3]
[402430911,1768675863281,-500.0,0.0001726,3]
[402430913,1768675863294,-500.0,0.0001726,3]
[402430915,1768675863306,-500.0,0.0001726,3]
[402430918,1768675863319,-500.0,0.0001726,3]
[402430920,1768675863331,-500.0,0.0001726,3]
[402430922,1768675863345,-500.0,0.0001726,3]
[402430925,1768675863357,-1352.2,0.0001726,3]
[402430927,1768675863366,-500.0,0.0001726,3]
[402430929,1768675863376,-500.0,0.0001726,3]
[402430931,1768675863385,-500.0,0.0001726,3]
[402430933,1768675863395,-626.58,0.0001726,3]
[402430973,1768675863773,-500.0,0.0001726,3]
[402430977,1768675863795,-1215.54,0.0001726,3]
[402430981,1768675863822,-500.0,0.0001726,3]
[402430983,1768675863834,-500.0,0.0001726,3]
[402430985,1768675863844,-537.14,0.0001726,3]
[402430987,1768675863853,-870.79,0.0001726,3]
[402430989,1768675863863,-500.0,0.0001726,2]
[402430991,1768675863872,-506.03,0.0001726,3]
[402430993,1768675863881,-519.62,0.0001726,3]
[402430995,1768675863891,-510.42,0.0001726,3]
[402430997,1768675863900,-500.0,0.0001726,2]
[402430999,1768675863910,-500.0,0.0001726,3]
[402431001,1768675863919,-569.38190569,0.0001726,3]
[402431003,1768675863929,-500.0,0.0001726,3]
[402431005,1768675863938,-500.0,0.0001726,3]
[402431007,1768675863947,-500.0,0.0001726,3]
[402431009,1768675863957,-502.82,0.0001726,3]
[402431011,1768675863966,-500.0,0.0001726,3]
[402431013,1768675863975,-808.14,0.0001726,3]
[402431015,1768675863984,-500.0,0.0001726,3]
[402431017,1768675863993,-500.0,0.0001726,3]
[402431019,1768675864003,-500.0,0.0001726,3]
[402431021,1768675864012,-500.0,0.0001726,3]
[402431023,1768675864021,-1374.8,0.0001726,3]
[402431025,1768675864035,-724.63,0.0001726,3]
[402431027,1768675864045,-500.0,0.0001726,3]
[402431029,1768675864054,-1054.46,0.0001726,3]
[402431031,1768675864065,-500.0,0.0001726,3]
[402431033,1768675864075,-500.0,0.0001726,3]
[402431035,1768675864085,-500.0,0.0001726,3]
[402431037,1768675864095,-737.54,0.0001726,3]
[402431039,1768675864105,-500.0,0.0001726,3]
[402431041,1768675864114,-500.0,0.0001726,3]
[402431043,1768675864124,-500.0,0.0001726,3]
[402431045,1768675864134,-500.0,0.0001726,3]
[402431048,1768675864144,-952.61,0.0001726,3]
[402431050,1768675864154,-500.0,0.0001726,3]
[402431052,1768675864164,-500.0,0.0001726,3]
[402431054,1768675864175,-503.62,0.0001726,3]
[402431056,1768675864184,-500.0,0.0001726,3]
[402431058,1768675864194,-500.0,0.0001726,3]
[402431060,1768675864204,-979.67,0.0001726,3]
[402431062,1768675864214,-719.44,0.0001726,3]
[402431064,1768675864225,-932.18,0.0001726,3]
[402431066,1768675864234,-500.0,0.0001726,3]
[402431068,1768675864243,-500.0,0.0001726,3]
[402431070,1768675864253,-982.12,0.0001726,3]
[402431072,1768675864263,-500.0,0.0001726,3]
[402431074,1768675864272,-915.97,0.0001726,3]
[402431076,1768675864281,-514.33,0.0001726,3]
[402431078,1768675864291,-500.0,0.0001726,3]
[402431080,1768675864300,-500.0,0.0001726,3]
[402431081,1768675864315,-500.0,0.0001726,3]
[402431082,1768675864333,-822.86,0.0001726,3]
[402431083,1768675864342,-500.0,0.0001726,3]
[402431084,1768675864351,-1158.19,0.0001726,3]
[402431085,1768675864360,-500.0,0.0001726,3]
[402431086,1768675864369,-183.181997,0.0001726,2]
[402431087,1768675864378,-500.0,0.0001726,3]
[402431088,1768675864388,-183.181997,0.0001726,2]
[402431089,1768675864397,-183.181997,0.0001726,2]
[402431090,1768675864407,-183.181997,0.0001726,2]
[402431091,1768675864416,-500.0,0.0001726,3]
[402431092,1768675864435,-500.0,0.0001726,3]
[402431093,1768675864457,-500.0,0.0001726,3]
[402431094,1768675864477,-500.0,0.0001726,3]
[402431095,1768675864486,-1545.23,0.0001726,3]
[402431096,1768675864497,-500.0,0.0001726,3]
[402431097,1768675864508,-1920.93,0.0001726,3]
[402431098,1768675864519,-536.54,0.0001726,3]
[402431099,1768675864529,-500.0,0.0001726,3]
[402431100,1768675864539,-1564.12,0.0001726,3]
[402431101,1768675864549,-500.0,0.0001726,3]
[402431102,1768675864559,-1132.13,0.0001726,3]
[402431103,1768675864568,-500.0,0.0001726,3]
[402431104,1768675864577,-500.0,0.0001726,3]
[402431105,1768675864587,-652.64,0.0001726,3]
[402431106,1768675864596,-500.0,0.0001726,3]
[402431107,1768675864607,-1416.4,0.0001726,3]
[402431108,1768675864617,-500.0,0.0001726,3]
[402431109,1768675864631,-500.0,0.0001726,3]
[402431110,1768675864640,-562.34469649,0.0001726,3]
[402431112,1768675864650,-1075.4,0.0001726,3]
[402431114,1768675864659,-500.0,0.0001726,3]
[402431116,1768675864671,-234.44653758,0.0001726,3]
[402431118,1768675864681,-1096.32,0.0001726,3]
[402431120,1768675864690,-500.0,0.0001726,3]
[402431122,1768675864700,-500.0,0.0001726,3]
[402431124,1768675864710,-752.51,0.0001726,3]
[402431126,1768675864720,-500.0,0.0001726,3]
[402431128,1768675864731,-500.0,0.0001726,3]
[402431130,1768675864740,-500.0,0.0001726,3]
[402431132,1768675864750,-500.0,0.0001726,3]
[402431134,1768675864760,-500.0,0.0001726,3]
[402431137,1768675864771,-657.67,0.0001726,3]
[402431139,1768675864780,-244.26437665,0.0001726,3]
[402431141,1768675864789,-500.0,0.0001726,3]
[402431142,1768675864799,-500.0,0.0001726,3]
[402431144,1768675864810,-784.82,0.0001726,3]
[402431147,1768675864820,-500.0,0.0001726,3]
[402431149,1768675864830,-625.18,0.0001726,3]
[402431151,1768675864839,-500.0,0.0001726,3]
[402431153,1768675864848,-500.0,0.0001726,3]
[402431155,1768675864859,-1000.0,0.0001726,2]
[402431157,1768675864868,-500.0,0.0001726,3]
[402431159,1768675864878,-1239.89,0.0001726,3]
[402431161,1768675864888,-500.0,0.0001726,3]
[402431163,1768675864897,-1672.89,0.0001726,3]
[402431165,1768675864907,-652.44,0.0001726,3]
[402431166,1768675864917,-500.0,0.0001726,3]
[402431168,1768675864927,-1667.11,0.0001726,3]
[402431170,1768675864936,-620.35,0.0001726,3]
[402431173,1768675864947,-1466.89,0.0001726,3]
[402431174,1768675864957,-500.0,0.0001726,3]
[402431177,1768675864967,-500.0,0.0001726,3]
[402431179,1768675864976,-500.0,0.0001726,3]
[402431181,1768675864987,-500.0,0.0001726,3]
[402431183,1768675864997,-1430.32,0.0001726,3]
[402431185,1768675865007,-500.0,0.0001726,3]
[402431187,1768675865017,-500.0,0.0001726,3]
[402431189,1768675865026,-500.0,0.0001726,3]
[402431191,1768675865036,-500.0,0.0001726,3]
[402431193,1768675865045,-500.0,0.0001726,3]
[402431195,1768675865055,-500.0,0.0001726,3]
[402431197,1768675865064,-500.0,0.0001726,3]
[402431199,1768675865073,-500.0,0.0001726,3]
[402431201,1768675865083,-500.0,0.0001726,3]
[402431203,1768675865092,-2427.21,0.0001726,3]
[402431205,1768675865101,-500.0,0.0001726,3]
[402431207,1768675865110,-843.85,0.0001726,3]
[402431209,1768675865119,-2175.59,0.0001726,3]
[402431211,1768675865129,-584.46,0.0001726,3]
[402431213,1768675865138,-500.0,0.0001726,3]
[402431215,1768675865147,-500.0,0.0001726,3]
[402431217,1768675865157,-500.0,0.0001726,3]
[402431219,1768675865166,-500.0,0.0001726,3]
[402431221,1768675865175,-500.0,0.0001726,3]
[402431223,1768675865185,-753.6,0.0001726,3]
[402431224,1768675865194,-1210.67,0.0001726,3]
[402431226,1768675865203,-500.0,0.0001726,3]
[402431228,1768675865213,-1177.08,0.0001726,3]
[402431231,1768675865226,-500.0,0.0001726,3]
[402431233,1768675865238,-500.0,0.0001726,3]
[402431234,1768675865247,-500.0,0.0001726,3]
[402431236,1768675865256,-733.19,0.0001726,3]
[402431238,1768675865266,-591.87,0.0001726,3]
[402431240,1768675865276,-553.19,0.0001726,3]
[402431242,1768675865286,-500.0,0.0001726,3]
[402431244,1768675865295,-500.0,0.0001726,3]
[402431246,1768675865305,-500.0,0.0001726,3]
[402431248,1768675865315,-500.0,0.0001726,3]
[402431250,1768675865325,-500.0,0.0001726,3]
[402431252,1768675865334,-500.0,0.0001726,3]
[402431254,1768675865344,-500.0,0.0001726,3]
[402431256,1768675865353,-609.57,0.0001726,3]
[402431258,1768675865363,-500.0,0.0001726,3]
[402431259,1768675865372,-779.45,0.0001726,3]
[402431260,1768675865382,-930.42,0.0001726,3]
[402431261,1768675865391,-500.0,0.0001726,3]
[402431262,1768675865401,-978.58,0.0001726,3]
[402431263,1768675865422,-500.0,0.0001726,3]
[402431264,1768675865441,-503.39,0.0001726,3]
[402431265,1768675865451,-500.0,0.0001726,3]
[402431266,1768675865460,-500.0,0.0001726,3]
[402431267,1768675865469,-676.55,0.0001726,3]
[402431268,1768675865478,-500.0,0.0001726,3]
[402431269,1768675865487,-500.0,0.0001726,3]
[402431270,1768675865497,-526.57336217,0.0001726,3]
[402431271,1768675865506,-1244.98,0.0001726,3]
[402431272,1768675865515,-500.0,0.0001726,3]
[402431273,1768675865525,-1356.45,0.0001726,3]
[402431274,1768675865534,-658.22,0.0001726,3]
[402431275,1768675865544,-500.0,0.0001726,3]
[402431276,1768675865553,-684.41,0.0001726,3]
[402431277,1768675865563,-667.89,0.0001726,3]
[402431278,1768675865572,-500.0,0.0001726,3]
[402431279,1768675865581,-1628.67,0.0001726,3]
[402431280,1768675865591,-500.0,0.0001726,3]
[402431281,1768675865600,-500.0,0.0001726,3]
[402431282,1768675865610,-500.0,0.0001726,3]
[402431283,1768675865621,-1219.0,0.0001726,3]
[402431284,1768675865631,-825.95,0.0001726,3]
[402431285,1768675865641,-937.01,0.0001726,3]
[402431286,1768675865651,-500.0,0.0001726,3]
[402431287,1768675865661,-843.19,0.0001726,3]
[402431288,1768675865671,-500.0,0.0001726,3]
[402431289,1768675865680,-947.02,0.0001726,3]
[402431290,1768675865690,-500.0,0.0001726,3]
[402431291,1768675865700,-933.84,0.0001726,3]
[402431292,1768675865709,-947.02,0.0001726,3]
[402431293,1768675865719,-500.0,0.0001726,3]
[402431294,1768675865728,-372.96596375,0.0001726,3]
[402431295,1768675865738,-1134.33,0.0001726,3]
[402431296,1768675865747,-275.38497984,0.0001726,3]
[402431297,1768675865757,-500.0,0.0001726,3]
[402431298,1768675865766,-1667.68,0.0001726,3]
[402431299,1768675865776,-500.0,0.0001726,3]
[402431300,1768675865785,-640.01,0.0001726,3]
[402431301,1768675865795,-500.0,0.0001726,3]
[402431302,1768675865805,-500.0,0.0001726,3]
[402431303,1768675865815,-761.33,0.0001726,3]
[402431304,1768675865825,-453.08603643,0.0001726,3]
[402431305,1768675865835,-500.0,0.0001726,3]
[402431306,1768675865846,-500.0,0.0001726,3]
[402431307,1768675865856,-509.91,0.0001726,3]
[402431308,1768675865867,-611.98339815,0.0001726,3]
[402431309,1768675865877,-500.0,0.0001726,3]
[402431310,1768675865887,-1711.38,0.0001726,3]
[402431311,1768675865896,-1068.39,0.0001726,3]
[402431312,1768675865907,-500.0,0.0001726,3]
[402431313,1768675865916,-500.0,0.0001726,3]
[402431314,1768675865926,-500.0,0.0001726,3]
[402431315,1768675865936,-500.0,0.0001726,3]
[402431316,1768675865945,-500.0,0.0001726,3]
[402431317,1768675865955,-500.0,0.0001726,3]
[402431318,1768675865965,-1264.17,0.0001726,3]
[402431319,1768675865975,-1911.06,0.0001726,3]
[402431320,1768675865984,-731.23,0.0001726,3]
[402431321,1768675865994,-500.0,0.0001726,3]
[402431322,1768675866004,-2552.27,0.0001726,3]
[402431323,1768675866014,-1441.61,0.0001726,3]
[402431324,1768675866024,-1297.14,0.0001726,3]
[402431325,1768675866034,-901.56,0.0001726,3]
[402431326,1768675866044,-762.49,0.0001726,3]
[402431327,1768675866053,-1023.82,0.0001726,3]
[402431328,1768675866063,-500.0,0.0001726,3]
[402431329,1768675866073,-500.0,0.0001726,3]
[402431330,1768675866082,-500.0,0.0001726,3]
[402431331,1768675866092,-500.0,0.0001726,3]
[402431334,1768675866159,-500.0,0.0001726,3]
[402431335,1768675866169,-500.0,0.0001726,3]
[402431336,1768675866179,-808.76,0.0001726,3]
[402431337,1768675866189,-500.0,0.0001726,3]
[402431338,1768675866199,-500.0,0.0001726,3]
[402431339,1768675866209,-500.0,0.0001726,3]
[402431340,1768675866219,-917.73,0.0001726,3]
[402431341,1768675866228,-906.34,0.0001726,3]
[402431342,1768675866238,-500.0,0.0001726,3]
[402431344,1768675866248,-569.12,0.0001726,3]
[402431345,1768675866257,-1618.42,0.0001726,3]
[402431347,1768675866266,-178.3,0.0001726,2]
[402431349,1768675866275,-500.0,0.0001726,3]
[402431351,1768675866285,-1752.95,0.0001726,3]
[402431353,1768675866295,-697.63,0.0001726,3]
[402431355,1768675866305,-1011.8,0.0001726,3]
[402431357,1768675866315,-619.55,0.0001726,3]
[402431359,1768675866324,-575.62,0.0001726,3]
[402431361,1768675866334,-795.91,0.0001726,3]
[402431363,1768675866343,-500.0,0.0001726,3]
[402431365,1768675866354,-730.43,0.0001726,3]
[402431367,1768675866364,-669.17,0.0001726,3]
[402431369,1768675866374,-500.0,0.0001726,3]
[402431371,1768675866384,-500.0,0.0001726,3]
[402431373,1768675866393,-865.41,0.0001726,3]
[402431375,1768675866404,-500.0,0.0001726,3]
[402431377,1768675866413,-500.0,0.0001726,3]
[402431379,1768675866423,-500.0,0.0001726,3]
[402431381,1768675866432,-500.0,0.0001726,3]
[402431383,1768675866442,-1562.03,0.0001726,3]
[402431385,1768675866451,-500.0,0.0001726,3]
[402431387,1768675866462,-500.0,0.0001726,3]
[402431389,1768675866472,-500.0,0.0001726,3]
[402431391,1768675866483,-598.38,0.0001726,3]
[402431393,1768675866492,-500.0,0.0001726,3]
[402431395,1768675866502,-680.48,0.0001726,3]
[402431397,1768675866511,-1316.96,0.0001726,3]
[402431399,1768675866520,-1646.11,0.0001726,3]
[402431401,1768675866529,-500.0,0.0001726,3]
[402431403,1768675866539,-500.0,0.0001726,3]
[402431405,1768675866548,-500.0,0.0001726,3]
[402431407,1768675866557,-500.0,0.0001726,3]
[402431409,1768675866567,-500.0,0.0001726,3]
[402431411,1768675866576,-500.0,0.0001726,3]
[402431413,1768675866585,-500.0,0.0001726,3]
[402431415,1768675866595,-923.82,0.0001726,3]
[402431417,1768675866604,-539.74,0.0001726,3]
[402431419,1768675866614,-500.0,0.0001726,3]
[402431421,1768675866628,-500.0,0.0001726,3]
[402431423,1768675866638,-500.0,0.0001726,3]
[402431425,1768675866648,-545.96,0.0001726,3]
[402431427,1768675866658,-539.86,0.0001726,3]
[402431429,1768675866669,-500.0,0.0001726,3]
[402431431,1768675866678,-500.0,0.0001726,3]
[402431433,1768675866687,-500.0,0.0001726,3]
[402431435,1768675866700,-500.0,0.0001726,3]
[402431437,1768675866709,-500.0,0.0001726,3]
[402431439,1768675866719,-528.91250035,0.0001726,3]
[402431441,1768675866728,-1249.71,0.0001726,3]
[402431443,1768675866738,-895.54,0.0001726,3]
[402431446,1768675866748,-822.61,0.0001726,3]
[402431447,1768675866757,-500.0,0.0001726,3]
[402431449,1768675866767,-545.77,0.0001726,3]
[402431452,1768675866777,-530.24218336,0.0001726,3]
[402431453,1768675866786,-500.0,0.0001726,3]
[402431454,1768675866795,-1542.26,0.0001726,3]
[402431455,1768675866804,-500.0,0.0001726,3]
[402431456,1768675866813,-500.0,0.0001726,3]
[402431457,1768675866822,-500.0,0.0001726,3]
[402431458,1768675866831,-500.0,0.0001726,3]
[402431459,1768675866840,-500.0,0.0001726,3]
[402431460,1768675866849,-500.0,0.0001726,3]
[402431461,1768675866858,-739.58,0.0001726,3]
[402431462,1768675866867,-500.0,0.0001726,3]
[402431463,1768675866876,-1833.14,0.0001726,3]
[402431464,1768675866885,-1311.65,0.0001726,3]
[402431465,1768675866895,-500.0,0.0001726,3]
[402431467,1768675866904,-359.73801273,0.0001726,3]
[402431469,1768675866914,-994.35,0.0001726,3]
[402431472,1768675866924,-500.0,0.0001726,3]
[402431474,1768675866935,-1390.83,0.0001726,3]
[402431476,1768675866944,-500.0,0.0001726,3]
[402431478,1768675866954,-500.0,0.0001726,3]
[402431480,1768675866963,-500.0,0.0001726,3]
[402431482,1768675866973,-500.0,0.0001726,3]
[402431484,1768675866982,-1684.0,0.0001726,3]
[402431486,1768675866991,-500.0,0.0001726,3]
[402431488,1768675867000,-500.0,0.0001726,3]
[402431509,1768675867173,-500.0,0.0001726,3]